[Event "Late-Titled-Tuesday-Blitz-March-05-2024"]
[Site "Chess.com"]
[Date "2024.03.05"]
[Round "2"]
[White "AlexTruskavetsky"]
[Black "the_blue_pill"]
[Result "0-1"]
[WhiteElo "2695"]
[BlackElo "2412"]
[TimeControl "180+1"]
[EndTime "14:19:15 PST"]
[Termination "the_blue_pill won by resignation"]

1. d4 {[%clk 0:03:00.9]} 1... d5 {[%clk 0:02:53.1]} 2. c4 {[%clk 0:03:01]} 2...
e6 {[%clk 0:02:53.4]} 3. Nc3 {[%clk 0:03:01.1]} 3... c5 {[%clk 0:02:54]} 4. cxd5
{[%clk 0:03:00.2]} 4... exd5 {[%clk 0:02:54.9]} 5. Nf3 {[%clk 0:03:00.6]} 5...
Nc6 {[%clk 0:02:55.8]} 6. g3 {[%clk 0:03:01.2]} 6... Nf6 {[%clk 0:02:55.1]} 7.
Bg2 {[%clk 0:03:01.6]} 7... cxd4 {[%clk 0:02:55.6]} 8. Nxd4 {[%clk 0:03:01.5]}
8... Bc5 {[%clk 0:02:56]} 9. Nb3 {[%clk 0:03:01.6]} 9... Bb6 {[%clk 0:02:56.1]}
10. O-O {[%clk 0:03:00.1]} 10... d4 {[%clk 0:02:56.2]} 11. Na4 {[%clk
0:03:00.3]} 11... O-O {[%clk 0:02:56.3]} 12. Nxb6 {[%clk 0:03:00.5]} 12... axb6
{[%clk 0:02:55.9]} 13. Bxc6 {[%clk 0:03:00]} 13... bxc6 {[%clk 0:02:55]} 14.
Qxd4 {[%clk 0:03:00.5]} 14... Be6 {[%clk 0:02:43.1]} 15. Qxd8 {[%clk 0:02:51.2]}
15... Rfxd8 {[%clk 0:02:43.6]} 16. Bg5 {[%clk 0:02:50.5]} 16... h6 {[%clk
0:02:29.8]} 17. Bf4 {[%clk 0:02:32.5]} 17... c5 {[%clk 0:02:24.5]} 18. Bc7
{[%clk 0:02:30.7]} 18... Rdc8 {[%clk 0:02:20.3]} 19. Bxb6 {[%clk 0:02:30.9]}
19... Nd7 {[%clk 0:02:19.5]} 20. Ba5 {[%clk 0:02:29.3]} 20... c4 {[%clk
0:02:15.1]} 21. Bc3 {[%clk 0:02:26.3]} 21... cxb3 {[%clk 0:02:12.5]} 22. axb3
{[%clk 0:02:27.2]} 22... Bxb3 {[%clk 0:02:09.4]} 23. f3 {[%clk 0:02:12.5]} 23...
Nb6 {[%clk 0:02:02.2]} 24. Rfc1 {[%clk 0:02:09.7]} 24... Rxa1 {[%clk 0:01:59.2]}
25. Rxa1 {[%clk 0:02:09.8]} 25... Nd5 {[%clk 0:01:56.3]} 26. Bd4 {[%clk
0:01:48.2]} 26... Rc4 {[%clk 0:01:51.2]} 27. e3 {[%clk 0:01:30.2]} 27... Rc2
{[%clk 0:01:44]} 28. e4 {[%clk 0:01:21.7]} 28... Nb4 {[%clk 0:01:33.7]} 29. Ra8+
{[%clk 0:01:21.5]} 29... Kh7 {[%clk 0:01:28.9]} 30. Rb8 {[%clk 0:01:21.8]} 30...
Nc6 {[%clk 0:01:26.2]} 31. Rxb3 {[%clk 0:01:16.1]} 31... Nxd4 {[%clk 0:01:26.1]}
32. Rd3 {[%clk 0:01:16.7]} 32... Ne2+ {[%clk 0:01:17.5]} 33. Kf1 {[%clk
0:01:16.9]} 33... Rxb2 {[%clk 0:01:17.3]} 34. Rd7 {[%clk 0:01:07.1]} 34... Kg6
{[%clk 0:01:14.1]} 35. Rd6+ {[%clk 0:01:02.5]} 35... f6 {[%clk 0:01:14]} 36. e5
{[%clk 0:01:00.1]} 36... Nc3 {[%clk 0:01:07.6]} 37. h4 {[%clk 0:00:56.8]} 37...
Ne2 {[%clk 0:00:59.3]} 38. Kf2 {[%clk 0:00:56.8]} 38... Nd4+ {[%clk 0:00:54.3]}
39. Kf1 {[%clk 0:00:57.1]} 39... Nf5 {[%clk 0:00:54.1]} 40. h5+ {[%clk
0:00:54.4]} 40... Kxh5 {[%clk 0:00:52.3]} 41. g4+ {[%clk 0:00:54.4]} 41... Kg5
{[%clk 0:00:49]} 42. gxf5 {[%clk 0:00:55.3]} 42... Kxf5 {[%clk 0:00:48.1]} 43.
exf6 {[%clk 0:00:55.6]} 43... gxf6 {[%clk 0:00:45.7]} 44. Rd4 {[%clk 0:00:55.9]}
44... h5 {[%clk 0:00:45.3]} 45. Kg1 {[%clk 0:00:55.8]} 45... Kg5 {[%clk
0:00:44.1]} 46. Kh1 {[%clk 0:00:52.3]} 46... f5 {[%clk 0:00:38.7]} 47. Kg1
{[%clk 0:00:52.5]} 47... f4 {[%clk 0:00:36.8]} 48. Kf1 {[%clk 0:00:47.4]} 48...
h4 {[%clk 0:00:34.4]} 49. Rd5+ {[%clk 0:00:46.4]} 49... Kg6 {[%clk 0:00:31.9]}
50. Rd6+ {[%clk 0:00:46.7]} 50... Kg5 {[%clk 0:00:27.2]} 51. Rd5+ {[%clk
0:00:47.1]} 51... Kf6 {[%clk 0:00:21.6]} 52. Rd6+ {[%clk 0:00:46.5]} 52... Ke5
{[%clk 0:00:20.4]} 53. Rh6 {[%clk 0:00:44.6]} 53... Kd4 {[%clk 0:00:20.6]} 54.
Rxh4 {[%clk 0:00:43.2]} 54... Ke3 {[%clk 0:00:20.8]} 55. Rh3 {[%clk 0:00:36.4]}
55... Rf2+ {[%clk 0:00:20.7]} 56. Ke1 {[%clk 0:00:36.7]} 56... Rxf3 {[%clk
0:00:19.3]} 57. Rh8 {[%clk 0:00:36.7]} 57... Rg3 {[%clk 0:00:18.9]} 58. Kf1
{[%clk 0:00:37]} 58... Rg6 {[%clk 0:00:16]} 59. Ra8 {[%clk 0:00:36.9]} 59... Kf3
{[%clk 0:00:14.6]} 60. Ra3+ {[%clk 0:00:37]} 60... Kg4 {[%clk 0:00:15.2]} 61.
Kf2 {[%clk 0:00:37.7]} 61... Rc6 {[%clk 0:00:15.3]} 62. Ra8 {[%clk 0:00:36.9]}
62... Rc2+ {[%clk 0:00:14.9]} 63. Kf1 {[%clk 0:00:37.3]} 63... Kg3 {[%clk
0:00:15.2]} 64. Rg8+ {[%clk 0:00:19.9]} 64... Kf3 {[%clk 0:00:15.6]} 65. Ke1
{[%clk 0:00:20.5]} 65... Rc1+ {[%clk 0:00:14]} 66. Kd2 {[%clk 0:00:21]} 66...
Rf1 {[%clk 0:00:13.8]} 67. Rf8 {[%clk 0:00:18.9]} 67... Rf2+ {[%clk 0:00:10.1]}
68. Kd3 {[%clk 0:00:19.2]} 68... Rf1 {[%clk 0:00:10.2]} 69. Rf7 {[%clk
0:00:18.3]} 69... Re1 {[%clk 0:00:09.6]} 70. Kd2 {[%clk 0:00:18.3]} 70... Re5
{[%clk 0:00:09.4]} 71. Kd1 {[%clk 0:00:17.4]} 71... Kg3 {[%clk 0:00:09.1]} 72.
Kd2 {[%clk 0:00:16.8]} 72... f3 {[%clk 0:00:08.8]} 73. Rg7+ {[%clk 0:00:17.4]}
73... Kf2 {[%clk 0:00:09.2]} 74. Rg6 {[%clk 0:00:17.8]} 74... Rd5+ {[%clk
0:00:09.4]} 75. Kc3 {[%clk 0:00:18.1]} 75... Rd8 {[%clk 0:00:10.3]} 76. Kc4
{[%clk 0:00:18.3]} 76... Ke1 {[%clk 0:00:10.3]} 77. Re6+ {[%clk 0:00:18.4]}
77... Kf1 {[%clk 0:00:10.8]} 78. Rf6 {[%clk 0:00:19.1]} 78... f2 {[%clk
0:00:11.7]} 79. Rd6 {[%clk 0:00:19.6]} 79... Rxd6 {[%clk 0:00:11.6]} 0-1

[Event "Late-Titled-Tuesday-Blitz-March-05-2024"]
[Site "Chess.com"]
[Date "2024.03.05"]
[Round "2"]
[White "ContrVersia"]
[Black "CarrotsandPizza"]
[Result "1/2-1/2"]
[WhiteElo "2863"]
[BlackElo "2592"]
[TimeControl "180+1"]
[EndTime "14:19:41 PST"]
[Termination "Game drawn by repetition"]

1. d4 {[%clk 0:03:00.9]} 1... Nf6 {[%clk 0:02:59]} 2. c4 {[%clk 0:03:01]} 2...
g6 {[%clk 0:02:59.1]} 3. Nc3 {[%clk 0:03:00.8]} 3... Bg7 {[%clk 0:02:59.6]} 4.
e4 {[%clk 0:03:00.7]} 4... d6 {[%clk 0:03:00]} 5. h3 {[%clk 0:03:01]} 5... O-O
{[%clk 0:03:00.1]} 6. Be3 {[%clk 0:03:01.6]} 6... Nbd7 {[%clk 0:02:59.8]} 7. Nf3
{[%clk 0:03:00.1]} 7... a6 {[%clk 0:03:00.1]} 8. Bd3 {[%clk 0:02:59.1]} 8... c5
{[%clk 0:03:00.6]} 9. O-O {[%clk 0:02:45.3]} 9... cxd4 {[%clk 0:03:00.7]} 10.
Nxd4 {[%clk 0:02:45.2]} 10... Nc5 {[%clk 0:02:58.1]} 11. Bc2 {[%clk 0:02:44.6]}
11... Bd7 {[%clk 0:02:56]} 12. a4 {[%clk 0:02:34.7]} 12... Qa5 {[%clk
0:02:51.5]} 13. Qd2 {[%clk 0:02:26.8]} 13... Rfe8 {[%clk 0:02:48.3]} 14. Rfd1
{[%clk 0:02:22.3]} 14... Rac8 {[%clk 0:02:44.8]} 15. b3 {[%clk 0:02:20.6]} 15...
Ne6 {[%clk 0:02:41.1]} 16. Nde2 {[%clk 0:02:20.4]} 16... Bc6 {[%clk 0:02:35.2]}
17. Rab1 {[%clk 0:02:04.5]} 17... Qb4 {[%clk 0:02:33.1]} 18. Nd5 {[%clk
0:02:04.5]} 18... Qxd2 {[%clk 0:02:32.6]} 19. Rxd2 {[%clk 0:02:05.1]} 19... Nc5
{[%clk 0:02:26.9]} 20. Nec3 {[%clk 0:01:56.8]} 20... a5 {[%clk 0:02:23]} 21. Bd4
{[%clk 0:01:49.1]} 21... Nfd7 {[%clk 0:02:18.8]} 22. f4 {[%clk 0:01:31.7]} 22...
Bh6 {[%clk 0:01:48.6]} 23. g3 {[%clk 0:01:13]} 23... e5 {[%clk 0:01:26.8]} 24.
Be3 {[%clk 0:01:13.1]} 24... exf4 {[%clk 0:01:18.4]} 25. gxf4 {[%clk 0:01:13.1]}
25... Bg7 {[%clk 0:01:13.6]} 26. Bd4 {[%clk 0:01:09.7]} 26... Bxd4+ {[%clk
0:01:10.5]} 27. Rxd4 {[%clk 0:01:10.6]} 27... Kg7 {[%clk 0:01:09.5]} 28. Re1
{[%clk 0:01:09.9]} 28... f5 {[%clk 0:01:08.2]} 29. Kf2 {[%clk 0:01:08.6]} 29...
fxe4 {[%clk 0:01:06.4]} 30. Nxe4 {[%clk 0:01:09.5]} 30... Nxe4+ {[%clk
0:01:02.5]} 31. Bxe4 {[%clk 0:01:09.8]} 31... Nc5 {[%clk 0:00:54.1]} 32. Bc2
{[%clk 0:01:09.9]} 32... Rxe1 {[%clk 0:00:52.3]} 33. Kxe1 {[%clk 0:01:10.8]}
33... Re8+ {[%clk 0:00:51.9]} 34. Kf2 {[%clk 0:01:11]} 34... Bxd5 {[%clk
0:00:52.4]} 35. Rxd5 {[%clk 0:01:10.8]} 35... Re6 {[%clk 0:00:51.6]} 36. h4
{[%clk 0:01:10]} 36... Kf6 {[%clk 0:00:48.1]} 37. h5 {[%clk 0:01:09.8]} 37...
Ke7 {[%clk 0:00:46.4]} 38. Rg5 {[%clk 0:01:07.6]} 38... Kf7 {[%clk 0:00:44.8]}
39. Kf3 {[%clk 0:01:05.4]} 39... Rf6 {[%clk 0:00:41.8]} 40. hxg6+ {[%clk
0:00:44.1]} 40... hxg6 {[%clk 0:00:41.6]} 41. Ke3 {[%clk 0:00:43.6]} 41... b6
{[%clk 0:00:41.1]} 42. Rg4 {[%clk 0:00:41.7]} 42... Ne6 {[%clk 0:00:37]} 43. Rh4
{[%clk 0:00:39.1]} 43... Nc5 {[%clk 0:00:32.4]} 44. Rh7+ {[%clk 0:00:38.1]}
44... Kg8 {[%clk 0:00:32.6]} 45. Rc7 {[%clk 0:00:34.4]} 45... Rf7 {[%clk
0:00:32.8]} 46. Rc6 {[%clk 0:00:33.2]} 46... Rf6 {[%clk 0:00:33.3]} 47. Rxb6
{[%clk 0:00:32.6]} 47... Kg7 {[%clk 0:00:33]} 48. Rb5 {[%clk 0:00:32.1]} 48...
Re6+ {[%clk 0:00:31.5]} 49. Kf3 {[%clk 0:00:31.4]} 49... Rf6 {[%clk 0:00:31.4]}
50. Rxa5 {[%clk 0:00:31.5]} 50... Ne6 {[%clk 0:00:32]} 51. Be4 {[%clk
0:00:26.3]} 51... Nxf4 {[%clk 0:00:30.4]} 52. Ke3 {[%clk 0:00:25.6]} 52... Ne6
{[%clk 0:00:29]} 53. b4 {[%clk 0:00:25.1]} 53... Rf1 {[%clk 0:00:24.9]} 54. Ra7+
{[%clk 0:00:25.3]} 54... Kf6 {[%clk 0:00:24.7]} 55. a5 {[%clk 0:00:25.7]} 55...
Re1+ {[%clk 0:00:25.2]} 56. Kd3 {[%clk 0:00:23.1]} 56... Nf4+ {[%clk 0:00:25.3]}
57. Kd4 {[%clk 0:00:20.8]} 57... Ne6+ {[%clk 0:00:25.7]} 58. Kd5 {[%clk
0:00:21.2]} 58... Nf4+ {[%clk 0:00:24.2]} 59. Kxd6 {[%clk 0:00:21.5]} 59... Rxe4
{[%clk 0:00:24.9]} 60. Kc5 {[%clk 0:00:16.6]} 60... Nd3+ {[%clk 0:00:24.9]} 61.
Kd5 {[%clk 0:00:15.6]} 61... Re5+ {[%clk 0:00:21.8]} 62. Kd4 {[%clk 0:00:15.7]}
62... Nxb4 {[%clk 0:00:22.2]} 63. Kc3 {[%clk 0:00:10.6]} 63... Nc6 {[%clk
0:00:21.7]} 64. Ra6 {[%clk 0:00:11]} 64... Re6 {[%clk 0:00:19.1]} 65. Kd2 {[%clk
0:00:11]} 65... Ke5 {[%clk 0:00:19.3]} 66. Ra8 {[%clk 0:00:08.7]} 66... Nd4
{[%clk 0:00:19.5]} 67. a6 {[%clk 0:00:07.5]} 67... Nb3+ {[%clk 0:00:19.6]} 68.
Kc3 {[%clk 0:00:07.4]} 68... Nc5 {[%clk 0:00:20.1]} 69. a7 {[%clk 0:00:07.9]}
69... Ra6 {[%clk 0:00:20]} 70. Re8+ {[%clk 0:00:07.7]} 70... Kd6 {[%clk
0:00:20.1]} 71. a8=Q {[%clk 0:00:07.8]} 71... Rxa8 {[%clk 0:00:19.7]} 72. Rxa8
{[%clk 0:00:08.7]} 72... Ne4+ {[%clk 0:00:20]} 73. Kd4 {[%clk 0:00:08.2]} 73...
Nf6 {[%clk 0:00:20.9]} 74. Ra6+ {[%clk 0:00:08]} 74... Ke7 {[%clk 0:00:20.8]}
75. c5 {[%clk 0:00:08.4]} 75... g5 {[%clk 0:00:20.3]} 76. Ra7+ {[%clk
0:00:08.6]} 76... Ke6 {[%clk 0:00:20.4]} 77. Rg7 {[%clk 0:00:09.2]} 77... g4
{[%clk 0:00:19.8]} 78. Kc4 {[%clk 0:00:06.6]} 78... Kf5 {[%clk 0:00:18.6]} 79.
c6 {[%clk 0:00:06.5]} 79... Ne8 {[%clk 0:00:19.2]} 80. Rg8 {[%clk 0:00:05.6]}
80... Nd6+ {[%clk 0:00:17.6]} 81. Kc5 {[%clk 0:00:05.7]} 81... Ne4+ {[%clk
0:00:17.7]} 82. Kb6 {[%clk 0:00:06.2]} 82... Nc3 {[%clk 0:00:16.8]} 83. c7
{[%clk 0:00:05.8]} 83... Nd5+ {[%clk 0:00:16.8]} 84. Kb7 {[%clk 0:00:06.5]}
84... Nxc7 {[%clk 0:00:17.7]} 85. Kxc7 {[%clk 0:00:07.2]} 85... Kf4 {[%clk
0:00:18.6]} 86. Rf8+ {[%clk 0:00:06.8]} 86... Ke3 {[%clk 0:00:18.7]} 87. Kd6
{[%clk 0:00:06.7]} 87... g3 {[%clk 0:00:19.2]} 88. Kd5 {[%clk 0:00:06.8]} 88...
g2 {[%clk 0:00:19.8]} 89. Rg8 {[%clk 0:00:07.3]} 89... Kf2 {[%clk 0:00:20.3]}
90. Rf8+ {[%clk 0:00:07.8]} 90... Ke2 {[%clk 0:00:20.2]} 91. Rg8 {[%clk
0:00:08.1]} 91... Kf2 {[%clk 0:00:20.4]} 92. Rf8+ {[%clk 0:00:08.7]} 92... Ke2
{[%clk 0:00:20.9]} 93. Rg8 {[%clk 0:00:09.2]} 93... Kf2 {[%clk 0:00:21.1]}
1/2-1/2

[Event "Late-Titled-Tuesday-Blitz-March-05-2024"]
[Site "Chess.com"]
[Date "2024.03.05"]
[Round "2"]
[White "dennisodessa"]
[Black "Heydarli77"]
[Result "0-1"]
[WhiteElo "2562"]
[BlackElo "2378"]
[TimeControl "180+1"]
[EndTime "14:19:45 PST"]
[Termination "Heydarli77 won by checkmate"]

1. d4 {[%clk 0:03:00]} 1... d5 {[%clk 0:02:53.3]} 2. c4 {[%clk 0:03:00.3]} 2...
dxc4 {[%clk 0:02:52.5]} 3. e3 {[%clk 0:03:00.4]} 3... c5 {[%clk 0:02:50.5]} 4.
Bxc4 {[%clk 0:03:00.4]} 4... e6 {[%clk 0:02:46.8]} 5. Nf3 {[%clk 0:03:00.5]}
5... cxd4 {[%clk 0:02:45.7]} 6. exd4 {[%clk 0:03:01.4]} 6... Nf6 {[%clk
0:02:44.2]} 7. O-O {[%clk 0:03:01.9]} 7... Be7 {[%clk 0:02:43.2]} 8. Nc3 {[%clk
0:03:01.4]} 8... O-O {[%clk 0:02:41.6]} 9. d5 {[%clk 0:02:55.4]} 9... exd5
{[%clk 0:02:38.5]} 10. Nxd5 {[%clk 0:02:56.3]} 10... Nxd5 {[%clk 0:02:37.1]} 11.
Bxd5 {[%clk 0:02:57.2]} 11... Nd7 {[%clk 0:02:36.2]} 12. Bf4 {[%clk 0:02:55.4]}
12... Nf6 {[%clk 0:02:28.6]} 13. Bb3 {[%clk 0:02:55]} 13... Bg4 {[%clk
0:02:27.6]} 14. h3 {[%clk 0:02:51.4]} 14... Qxd1 {[%clk 0:02:25.9]} 15. Rfxd1
{[%clk 0:02:52.3]} 15... Bxf3 {[%clk 0:02:25.7]} 16. gxf3 {[%clk 0:02:53.2]}
16... Rfd8 {[%clk 0:02:24.4]} 17. Rac1 {[%clk 0:02:45.6]} 17... Rdc8 {[%clk
0:02:17.5]} 18. a4 {[%clk 0:01:44.3]} 18... Bb4 {[%clk 0:02:06]} 19. Bc7 {[%clk
0:01:33.3]} 19... Ne8 {[%clk 0:01:58.1]} 20. Be5 {[%clk 0:01:33.2]} 20... Rxc1
{[%clk 0:01:37]} 21. Rxc1 {[%clk 0:01:34.1]} 21... Bd6 {[%clk 0:01:34.1]} 22.
Bxd6 {[%clk 0:01:18.3]} 22... Nxd6 {[%clk 0:01:31.4]} 23. Rc7 {[%clk 0:01:19.2]}
23... Rd8 {[%clk 0:01:26.8]} 24. Bd5 {[%clk 0:01:18.1]} 24... g6 {[%clk
0:01:23.3]} 25. Bxb7 {[%clk 0:01:15.2]} 25... Rb8 {[%clk 0:01:21.1]} 26. Bc6
{[%clk 0:01:07.8]} 26... a5 {[%clk 0:01:13.1]} 27. Rd7 {[%clk 0:01:03.6]} 27...
Nc4 {[%clk 0:01:07.3]} 28. Bd5 {[%clk 0:01:03.5]} 28... Nxb2 {[%clk 0:01:05.6]}
29. Rxf7 {[%clk 0:00:57.5]} 29... Kh8 {[%clk 0:01:05.4]} 30. Bc6 {[%clk
0:00:49.3]} 30... Rb4 {[%clk 0:00:58.8]} 31. Ra7 {[%clk 0:00:46.6]} 31... Nxa4
{[%clk 0:00:56.5]} 32. Rxa5 {[%clk 0:00:42.6]} 32... Nc3 {[%clk 0:00:55.9]} 33.
Kg2 {[%clk 0:00:35.6]} 33... Ne2 {[%clk 0:00:53.3]} 34. Be4 {[%clk 0:00:21.8]}
34... Nf4+ {[%clk 0:00:49.8]} 35. Kg3 {[%clk 0:00:21.6]} 35... Nh5+ {[%clk
0:00:49.1]} 36. Kg4 {[%clk 0:00:20.6]} 36... Kg7 {[%clk 0:00:46.2]} 37. Ra7+
{[%clk 0:00:19.6]} 37... Kh6 {[%clk 0:00:44.9]} 38. Ra6 {[%clk 0:00:19.9]} 38...
Rb2 {[%clk 0:00:40.7]} 39. f4 {[%clk 0:00:17]} 39... Rxf2 {[%clk 0:00:32.1]} 40.
Bf3 {[%clk 0:00:17.1]} 40... Rf1 {[%clk 0:00:29.4]} 41. Ra2 {[%clk 0:00:17.7]}
41... Rg1+ {[%clk 0:00:28]} 42. Rg2 {[%clk 0:00:18.3]} 42... Rc1 {[%clk
0:00:24.5]} 43. Re2 {[%clk 0:00:17.9]} 43... Rc4 {[%clk 0:00:23.1]} 44. Be4
{[%clk 0:00:17.2]} 44... Nf6+ {[%clk 0:00:20.3]} 45. Kf3 {[%clk 0:00:17.8]}
45... Rc3+ {[%clk 0:00:18.5]} 46. Re3 {[%clk 0:00:17.8]} 46... Rc1 {[%clk
0:00:16.8]} 47. Kf2 {[%clk 0:00:14.6]} 47... Nh5 {[%clk 0:00:15.3]} 48. Rf3
{[%clk 0:00:12.6]} 48... Rc4 {[%clk 0:00:14]} 49. Ke3 {[%clk 0:00:12.7]} 49...
Nf6 {[%clk 0:00:12.1]} 50. Bd3 {[%clk 0:00:13.3]} 50... Nd5+ {[%clk 0:00:11.7]}
51. Kd2 {[%clk 0:00:13.7]} 51... Rxf4 {[%clk 0:00:11.3]} 52. Rg3 {[%clk
0:00:11.5]} 52... Rf2+ {[%clk 0:00:10.5]} 53. Ke1 {[%clk 0:00:11.9]} 53... Rb2
{[%clk 0:00:10]} 54. Rg4 {[%clk 0:00:10.9]} 54... Ne3 {[%clk 0:00:09.2]} 55. Rg3
{[%clk 0:00:10.1]} 55... Nd5 {[%clk 0:00:08.6]} 56. Be2 {[%clk 0:00:08.7]} 56...
Nf4 {[%clk 0:00:07.9]} 57. Bg4 {[%clk 0:00:09]} 57... Rh2 {[%clk 0:00:06.2]} 58.
Rf3 {[%clk 0:00:08.7]} 58... Ng2+ {[%clk 0:00:05.7]} 59. Kf1 {[%clk 0:00:09.1]}
59... Nh4 {[%clk 0:00:05.4]} 60. Kg1 {[%clk 0:00:10]} 60... Nxf3+ {[%clk
0:00:04.5]} 61. Bxf3 {[%clk 0:00:10.9]} 61... Rxh3 {[%clk 0:00:04.8]} 62. Kg2
{[%clk 0:00:11.4]} 62... Rxf3 {[%clk 0:00:04.7]} 63. Kxf3 {[%clk 0:00:11.8]}
63... Kg5 {[%clk 0:00:04.4]} 64. Kg3 {[%clk 0:00:12.7]} 64... h5 {[%clk
0:00:04.4]} 65. Kf3 {[%clk 0:00:13.6]} 65... Kh4 {[%clk 0:00:04.5]} 66. Kg2
{[%clk 0:00:14.5]} 66... Kg4 {[%clk 0:00:04.7]} 67. Kh2 {[%clk 0:00:15.4]} 67...
Kf3 {[%clk 0:00:04.8]} 68. Kh3 {[%clk 0:00:15.6]} 68... Kf2 {[%clk 0:00:04.4]}
69. Kh2 {[%clk 0:00:16.5]} 69... g5 {[%clk 0:00:04.2]} 70. Kh3 {[%clk
0:00:17.4]} 70... g4+ {[%clk 0:00:04.5]} 71. Kh4 {[%clk 0:00:18.3]} 71... g3
{[%clk 0:00:04.8]} 72. Kxh5 {[%clk 0:00:19.2]} 72... g2 {[%clk 0:00:05.1]} 73.
Kg5 {[%clk 0:00:20.1]} 73... g1=Q+ {[%clk 0:00:05.2]} 74. Kf5 {[%clk 0:00:21]}
74... Qg3 {[%clk 0:00:05.2]} 75. Ke4 {[%clk 0:00:21.1]} 75... Qe3+ {[%clk
0:00:04.7]} 76. Kd5 {[%clk 0:00:22]} 76... Qf4 {[%clk 0:00:04.7]} 77. Ke6 {[%clk
0:00:22.4]} 77... Qg5 {[%clk 0:00:04.8]} 78. Kd6 {[%clk 0:00:22.9]} 78... Qf5
{[%clk 0:00:05]} 79. Ke7 {[%clk 0:00:23.4]} 79... Qg6 {[%clk 0:00:05]} 80. Kd7
{[%clk 0:00:24.3]} 80... Ke3 {[%clk 0:00:04.5]} 81. Kc7 {[%clk 0:00:25.2]} 81...
Kd4 {[%clk 0:00:05]} 82. Kd7 {[%clk 0:00:26.1]} 82... Kd5 {[%clk 0:00:05.3]} 83.
Ke7 {[%clk 0:00:27]} 83... Qe6+ {[%clk 0:00:04.9]} 84. Kd8 {[%clk 0:00:27.9]}
84... Qf7 {[%clk 0:00:04.9]} 85. Kc8 {[%clk 0:00:28.2]} 85... Kc6 {[%clk
0:00:05.5]} 86. Kb8 {[%clk 0:00:29.1]} 86... Qb7# {[%clk 0:00:05.3]} 0-1